bitfinex/quotes_ETHUSD_20240710
["timestamp","ask_amount","ask_price","bid_price","bid_amount"]
[1720591619968,0.31054713,3111.5,3110.2,0.90624038]
[1720591620174,0.06417133,3111.4,3110.2,0.90624038]
[1720591620481,0.31054713,3111.5,3110.2,2.83537038]
[1720591620645,0.55,3111.6,3110.2,2.83537038]
[1720591623058,2.4913,3111.7,3110.3,0.06429101]
[1720591623390,2.4913,3111.7,3110.9,1.92869]
[1720591623591,2.4913,3111.7,3110.7,5.0674]
[1720591623779,2.4913,3111.7,3110.7,2.574]
[1720591623979,2.4913,3111.7,3110.8,0.2574]
[1720591624582,2.4913,3111.7,3110.3,7.50306]
[1720591624760,2.4913,3111.7,3110.4,1.92901]
[1720591624961,2.4913,3111.7,3110.7,1.9288]
[1720591625155,2.4913,3111.7,3110.5,3.0]
[1720591625482,2.4913,3111.7,3110.5,1.9932364]
[1720591625789,2.4913,3111.7,3110.6,0.69221864]
[1720591626384,2.4913,3111.7,3110.7,0.06428395]
[1720591626774,2.4913,3111.7,3110.7,1.99307395]
[1720591626988,2.4913,3111.7,3110.8,0.06427974]
[1720591627186,2.4913,3111.7,3110.7,1.92879]
[1720591627365,2.4913,3111.7,3110.8,0.26210086]
[1720591627565,0.06417133,3111.6,3110.6,0.69221864]
[1720591628394,2.55547133,3111.7,3110.6,0.69221864]
[1720591628596,2.55547133,3111.7,3110.4,12.06221383]
[1720591628597,0.25554713,3111.6,3110.4,7.13321383]
[1720591628784,2.3257,3111.4,3110.4,7.13321383]
[1720591629100,0.55,3111.3,3110.4,7.13321383]
[1720591629596,2.3257,3111.2,3110.4,7.13321383]
[1720591631663,2.38987133,3111.2,3110.4,7.13321383]
[1720591632300,2.3257,3111.2,3110.4,7.13321383]
[1720591633160,2.3257,3111.2,3110.0,7.13321383]
[1720591633361,2.3257,3111.2,3110.1,0.06429674]
[1720591634398,2.3257,3111.2,3110.0,7.13321383]
[1720591634595,2.38987133,3111.2,3110.0,7.13321383]
[1720591635061,2.38987133,3111.2,3109.7,3.0]
[1720591635062,0.55,3111.1,3109.7,3.0]
[1720591635263,2.4969,3110.9,3109.7,3.0]
[1720591635465,2.4969,3110.9,3109.6,4.92949]
[1720591635666,2.4969,3110.9,3109.6,4.99379381]
[1720591636096,2.4969,3110.9,3109.6,4.92949]
[1720591637301,2.4969,3110.9,3109.6,4.99379378]
[1720591637504,2.4969,3110.9,3109.7,0.75677938]
[1720591637706,2.4969,3110.9,3109.8,0.06430377]
[1720591637906,2.4969,3110.9,3109.7,3.75677938]
[1720591639024,2.4969,3110.9,3109.5,2.574]
[1720591639025,0.55,3110.8,3109.1,4.50376]
[1720591639206,2.4836,3110.7,3109.2,1.92974]
[1720591639406,0.55,3110.6,3109.4,0.06431059]
[1720591639611,0.79836,3110.6,3109.5,0.91272044]
[1720591642224,0.86253133,3110.6,3109.5,0.91272044]
[1720591643215,2.4668,3110.5,3109.3,7.13321383]
[1720591643419,0.61417133,3110.4,3109.3,7.13321383]
[1720591643731,0.61417133,3110.4,3109.0,4.92982]
[1720591644434,2.4852,3110.3,3109.0,4.92982]
[1720591644583,2.4852,3110.3,3109.0,3.0]
[1720591644584,0.06417133,3110.2,3109.0,3.0]
[1720591644780,2.4852,3110.3,3109.1,1.27072138]
[1720591644986,2.4852,3110.1,3108.8,1.92999]
[1720591645211,0.06417133,3110.0,3108.8,1.92999]
[1720591645421,2.4852,3110.1,3108.8,1.92999]
[1720591645823,2.4852,3110.1,3108.9,0.0643188]
[1720591646025,2.4852,3110.1,3109.0,0.26374212]
[1720591646329,2.4852,3110.1,3109.1,1.92981]
[1720591646587,2.4852,3110.1,3109.2,0.06431214]
[1720591648100,2.4852,3110.1,3109.1,1.92981]
[1720591648535,2.4852,3110.1,3109.1,1.99412233]
[1720591648705,2.4852,3110.1,3109.2,0.49941223]
[1720591649941,2.4852,3110.1,3109.3,0.064312]
[1720591650104,2.69844773,3110.5,3109.4,0.06430839]
[1720591650314,2.3623,3110.5,3109.6,1.9295]
[1720591650520,2.3623,3110.5,3109.7,0.06430377]
[1720591650830,2.3623,3110.5,3109.5,0.45679384]
[1720591651417,2.3623,3110.5,3109.2,0.56371944]
[1720591651634,0.55,3110.4,3109.3,0.06430721]
[1720591653336,0.55,3110.4,3109.2,2.42915223]
[1720591653337,2.3169,3110.3,3109.2,0.49941223]
[1720591653498,0.28669,3110.2,3109.2,0.49941223]
[1720591654230,0.28669,3110.2,3108.9,1.92992]
[1720591654531,2.4657,3110.1,3108.9,1.92992]
[1720591655446,2.4657,3110.1,3108.8,2.574]
[1720591655600,2.4657,3110.1,3108.7,1.93001]
[1720591656624,2.4657,3110.1,3108.7,4.93001]
[1720591656831,2.4657,3110.1,3108.8,1.20632238]
[1720591656832,0.24657,3110.0,3108.8,1.20632238]
[1720591657742,2.48947133,3109.9,3108.3,7.13321383]
[1720591657951,2.4253,3109.8,3108.0,2.0435731]
[1720591658102,2.4253,3109.6,3108.0,2.0435731]
[1720591658443,2.4253,3109.4,3108.1,0.91767869]
[1720591658742,0.06417133,3109.3,3108.1,0.91767869]
[1720591658945,0.24894713,3109.2,3108.1,0.91767869]
[1720591659104,0.06417133,3109.1,3108.1,0.91767869]
[1720591659451,2.37,3109.0,3108.1,0.91767869]
[1720591659752,2.37,3109.0,3108.0,0.1131031]
[1720591662812,0.06417133,3108.9,3108.0,0.1131031]
[1720591663331,2.8393,3108.8,3108.0,0.1131031]
[1720591663644,4.8633,3108.6,3108.0,0.1131031]
[1720591663812,2.2893,3108.4,3108.0,0.1131031]
[1720591664171,2.4192,3108.2,3108.0,0.1131031]
[1720591664439,2.48337133,3108.2,3108.0,0.1131031]
[1720591664646,2.9692,3108.1,3108.0,0.1131031]
[1720591665861,3.30538122,3108.1,3108.0,0.1131031]
[1720591666161,8.87938122,3108.1,3108.0,0.1131031]
[1720591666360,7.19973648,3108.1,3108.0,0.1131031]
[1720591667050,3.30538122,3108.1,3108.0,0.1131031]
[1720591671231,6.30538122,3108.1,3108.0,0.1131031]
[1720591671871,8.87938122,3108.1,3108.0,0.1131031]
[1720591672833,8.87938122,3108.1,3105.2,7.13321383]
[1720591672834,1.5,3107.6,3105.2,7.13321383]
[1720591673045,1.5,3107.6,3105.1,1.9323]
[1720591673046,0.28896041,3105.9,3105.1,1.9323]
[1720591673277,0.28896041,3105.9,3105.1,2.15729514]
[1720591673570,5.45,3106.8,3105.2,1.9966381]
[1720591673732,0.06417133,3106.7,3105.3,0.22216332]
[1720591673932,3.06417133,3106.7,3105.3,0.22216332]
[1720591674233,0.55,3106.6,3105.3,0.22216332]
[1720591674529,0.55,3106.6,3105.5,2.3147]
[1720591676969,0.55,3106.6,3105.1,2.3147]
[1720591677825,0.06417133,3106.5,3105.2,1.93224]
[1720591678024,0.55,3106.4,3105.2,0.424694]
[1720591678229,0.06417133,3106.3,3105.2,0.424694]
[1720591678468,2.50207133,3106.2,3104.9,0.1131031]
[1720591678671,3.0,3106.1,3104.9,0.1131031]
[1720591678874,0.06417133,3106.0,3104.9,0.1131031]
[1720591679059,2.2517,3105.8,3104.9,0.1131031]
[1720591679288,0.06417133,3105.7,3104.9,0.1131031]
[1720591679474,0.55,3105.6,3104.9,0.1131031]
[1720591679807,0.61417133,3105.6,3104.9,0.1131031]
[1720591680157,2.2517,3105.8,3104.9,0.1131031]
[1720591680416,0.55,3105.7,3104.9,0.1131031]
[1720591681661,0.36141713,3106.5,3104.9,0.1131031]
[1720591681976,0.33619231,3106.3,3104.9,0.1131031]
[1720591682299,0.33619231,3106.3,3105.0,1.99676317]
[1720591682508,0.33642056,3106.2,3104.9,0.1131031]
[1720591683517,0.55,3106.1,3104.9,0.1131031]
[1720591684609,0.61417133,3106.1,3104.9,0.1131031]
[1720591685813,3.448,3105.9,3104.9,0.1131031]
[1720591685972,1.19738133,3105.8,3104.9,0.1131031]
[1720591686179,0.06417133,3105.7,3104.9,0.1131031]
[1720591686408,0.55,3105.6,3104.9,0.1131031]
[1720591686711,0.06417133,3105.5,3104.9,0.1131031]
[1720591686928,0.55,3105.4,3104.9,0.1131031]
[1720591687136,0.06417133,3105.3,3104.9,0.1131031]
[1720591687337,0.55,3105.2,3104.9,0.1131031]
[1720591687510,0.06417133,3105.1,3104.9,0.1131031]
[1720591687711,0.55,3105.0,3104.9,0.1131031]
[1720591687928,0.90482713,3105.0,3104.9,0.1131031]
[1720591689234,0.35482713,3105.0,3104.9,0.1131031]
[1720591689456,3.0,3105.5,3104.9,0.1131031]
[1720591689616,0.55,3105.4,3104.9,0.1131031]
[1720591689790,3.55,3105.5,3104.9,0.1131031]
[1720591689997,1.10368713,3105.5,3104.9,0.1131031]
[1720591690198,4.16785846,3105.5,3104.9,0.1131031]
[1720591691352,2.3697,3105.0,3104.9,0.1131031]
[1720591691497,2.9197,3105.0,3104.9,0.1131031]
[1720591691692,6.21167,3105.0,3104.9,0.1131031]
[1720591692508,3.84197,3105.0,3104.9,0.1131031]
[1720591693301,0.84197,3105.0,3104.9,0.1131031]
[1720591693504,0.55,3105.0,3104.9,0.1131031]
[1720591693702,0.55,3105.3,3104.9,0.1131031]
[1720591693930,0.33604047,3105.0,3104.9,0.1131031]
[1720591694124,3.2349118,3105.0,3104.9,0.1131031]
[1720591694355,6.90320298,3105.0,3104.9,0.1131031]
[1720591695612,6.90320298,3105.0,3103.6,7.13321383]
[1720591695959,6.90320298,3105.0,3102.8,1.93372]
[1720591695960,3.448,3104.6,3102.9,2.3058]
[1720591696125,2.2549,3104.4,3102.9,2.3058]
[1720591696323,0.06417133,3104.3,3102.9,2.3058]
[1720591696552,0.61417133,3104.2,3102.9,2.3058]
[1720591696958,0.55,3104.2,3103.0,0.06445102]
[1720591697260,1.00433165,3105.0,3103.7,2.4333]
[1720591697261,0.33604047,3105.0,3103.7,2.4333]
[1720591697459,0.06417133,3105.5,3104.1,2.365]
[1720591697624,0.06417133,3105.4,3104.1,2.365]
[1720591697937,0.33619105,3105.5,3104.1,2.4294244]
[1720591698141,0.33619105,3105.5,3104.2,2.16936]
[1720591698315,0.33619105,3105.5,3104.3,0.0644156]
[1720591698515,0.33619105,3105.5,3104.2,2.2337756]
[1720591698724,0.33619105,3105.5,3104.2,2.23377561]
[1720591699218,0.40036238,3105.5,3104.2,0.2365]
[1720591699429,0.40036238,3105.5,3104.1,2.365]
[1720591699430,0.33619105,3105.5,3104.1,2.365]
[1720591699767,0.33619105,3105.5,3104.3,1.93278]
[1720591699965,0.33619105,3105.5,3104.4,0.193278]
[1720591700327,0.33619105,3105.5,3104.1,2.365]
[1720591701660,0.55,3105.4,3104.1,4.29792]
[1720591701963,0.55,3105.4,3104.1,2.365]
[1720591702171,0.55,3105.4,3103.4,2.2526]
[1720591702172,2.4496,3105.2,3103.4,2.2526]
[1720591702344,0.06417133,3105.1,3103.4,3.661938]
[1720591702670,0.06417133,3105.1,3103.5,1.93329]
[1720591702671,3.61417133,3105.1,3103.5,1.93329]
[1720591702878,3.61417133,3105.1,3103.6,1.93319]
[1720591702879,3.55,3105.1,3103.6,1.93319]
[1720591703163,0.95117713,3105.0,3103.6,1.93319]
[1720591703375,0.33619105,3105.5,3104.3,1.93277]
[1720591703670,0.33619105,3105.5,3103.7,2.32943128]
[1720591703671,0.33619105,3105.5,3104.4,0.06441526]
[1720591704033,0.33619105,3105.5,3103.8,10.13321383]
[1720591704234,0.33619105,3105.5,3103.8,13.30614521]
[1720591704544,0.40036238,3105.5,3104.0,1.93298]
[1720591704748,0.40036238,3105.5,3103.8,13.30611521]
[1720591705059,0.55,3105.4,3103.8,13.30611521]
[1720591705256,0.55,3105.4,3103.9,3.74788209]
[1720591705459,0.55,3105.4,3104.0,1.93298]
[1720591706334,0.33619105,3105.5,3104.3,1.93275]
[1720591706531,0.66981016,3105.5,3104.4,0.25769097]
[1720591706725,0.33619105,3105.5,3104.3,1.99716597]
[1720591706967,0.33619105,3105.5,3104.1,1.99732602]
[1720591707166,2.4402,3105.4,3103.9,3.68345852]
[1720591707327,2.4402,3105.4,3103.7,4.19816]
[1720591707532,0.06417133,3105.3,3103.7,2.265]
[1720591707734,3.0,3105.4,3104.0,1.93293]
[1720591707967,0.94779044,3105.3,3103.7,2.265]
[1720591708167,0.06417133,3105.2,3103.7,4.19817]
[1720591708370,2.35,3105.0,3103.7,4.19817]
[1720591708569,0.55,3104.9,3103.7,4.19817]
[1720591708734,0.55,3104.9,3103.7,5.111316]
[1720591708735,0.29,3104.8,3103.7,5.111316]
[1720591709746,0.55,3104.9,3103.8,1.9331]
[1720591709992,2.35,3105.0,3103.9,1.99742642]
[1720591710283,3.0,3105.4,3103.9,1.99742642]
[1720591710588,1.1300491,3105.3,3103.9,2.64386724]
[1720591711171,1.1300491,3105.3,3104.0,1.93298]
[1720591711483,0.5800491,3105.3,3104.0,1.99740343]
[1720591711785,2.80049105,3105.5,3104.4,1.93273]
[1720591711983,0.33619105,3105.5,3104.5,4.4039451]
[1720591712656,0.33619105,3105.5,3104.5,4.33953]
[1720591712864,0.33619105,3105.5,3104.5,3.04056923]
[1720591713392,7.46,3106.9,3105.5,1.93204]
[1720591713697,3.45,3107.5,3105.5,1.93204]
[1720591713698,2.3174,3107.4,3105.5,1.93204]
[1720591713850,2.3174,3106.7,3105.0,7.13321383]
[1720591714420,0.40020548,3106.6,3105.0,7.13321383]
[1720591714625,0.33603415,3106.6,3105.1,0.06440315]
[1720591714910,0.33593188,3106.5,3105.0,9.06556383]
[1720591715096,0.27176055,3106.5,3105.0,9.06553383]
[1720591715297,0.4249508,3106.4,3105.0,7.13321383]
[1720591715524,0.55,3106.3,3105.0,7.13321383]
[1720591715676,0.06417133,3106.2,3105.0,7.13321383]
[1720591715877,0.55,3106.1,3104.9,4.31561]
[1720591716072,0.06417133,3106.0,3104.9,4.31561]
[1720591716690,2.3075,3105.9,3104.5,7.13321383]
[1720591717011,0.78716713,3105.8,3104.5,7.13321383]
[1720591717312,0.78716713,3105.8,3104.6,1.9326]
[1720591717525,0.78716713,3105.8,3104.5,7.13321383]
[1720591717526,0.85133846,3105.8,3104.5,7.13321383]
[1720591717675,0.06417133,3105.7,3104.5,9.06588383]
[1720591717876,0.55,3105.6,3104.5,7.13321383]
[1720591718103,0.06417133,3105.5,3104.5,7.13321383]
[1720591718306,0.55,3105.6,3104.0,7.13321383]
[1720591718307,2.3075,3105.3,3104.0,7.13321383]
[1720591718473,0.78716713,3105.2,3104.0,7.13321383]
[1720591718988,0.06417133,3105.1,3104.0,7.13321383]
[1720591719207,0.55,3105.0,3104.0,7.13321383]
[1720591719577,0.55,3105.1,3104.0,7.13321383]
[1720591720283,0.61417133,3105.1,3104.0,7.13321383]
[1720591720505,0.55,3105.1,3104.0,7.13321383]
[1720591721381,0.55,3105.1,3104.1,0.06442754]
[1720591721931,0.23716713,3105.2,3104.3,1.93279]
[1720591722816,0.23716713,3105.2,3104.4,0.06441568]
[1720591723202,2.4829,3105.7,3104.4,0.06441568]
[1720591723203,3.0,3105.6,3104.4,0.06441568]
[1720591723410,0.55,3105.5,3104.0,9.97281621]
[1720591723607,3.79829,3105.6,3104.0,9.97281621]
[1720591723803,3.79829,3105.6,3104.1,1.9329]
[1720591724004,3.79829,3105.6,3104.2,0.0644194]
[1720591724233,3.79829,3105.6,3104.0,9.06618383]
[1720591724750,3.79829,3105.6,3104.3,1.93279]
[1720591724914,3.79829,3105.6,3104.4,0.06441482]
[1720591725113,0.628119,3105.5,3104.4,0.06441482]
[1720591725317,0.55,3105.4,3104.4,0.06441482]
[1720591725823,0.55,3105.4,3104.3,1.93279]
[1720591726028,0.55,3105.4,3104.3,1.99720481]
[1720591726243,0.55,3105.4,3104.3,1.93279]
[1720591726540,0.55,3105.4,3104.1,1.93292]
[1720591726750,0.55,3105.4,3104.2,1.93284]
[1720591728445,0.55,3105.4,3104.1,1.93291]
[1720591728603,0.55,3105.4,3103.9,2.4141]
[1720591728803,0.55,3105.4,3104.0,2.23880686]
[1720591729307,0.55,3105.4,3104.0,2.17439]
[1720591729527,0.55,3105.4,3104.0,1.93298]
[1720591729772,0.33605905,3105.3,3104.0,1.93298]
[1720591729957,0.55,3105.2,3104.0,1.93298]
[1720591730262,0.55,3105.2,3104.1,1.93292]
[1720591731463,0.55,3105.2,3104.2,1.93285]
[1720591731649,2.3439,3105.1,3103.7,9.06638383]
[1720591731964,0.84580713,3105.0,3103.7,1.93317]
[1720591732165,0.84580713,3105.0,3103.2,7.13321383]
[1720591732166,2.4679,3104.9,3103.2,7.13321383]
[1720591732331,0.06417133,3104.8,3103.3,1.93342]
[1720591732530,0.55,3104.7,3103.3,1.93342]
[1720591733042,0.61417133,3104.7,3103.3,1.93342]
[1720591733239,0.36141713,3104.6,3103.3,1.93342]
[1720591733577,0.55,3104.5,3103.3,1.93342]
[1720591733887,0.55,3104.5,3103.3,1.90111669]
[1720591734537,0.55,3104.5,3103.2,9.06669383]
[1720591735681,2.37637133,3104.4,3103.2,7.13321383]
[1720591735870,0.84263713,3104.3,3102.9,1.93367]
[1720591736025,0.84263713,3104.3,3102.9,1.93366]
[1720591736229,3.84263713,3104.3,3102.9,1.93366]
[1720591737059,3.84263713,3104.3,3102.7,4.28028]
[1720591737060,2.4438,3104.1,3102.7,1.93378]
[1720591737260,0.61417133,3104.0,3102.7,1.93378]
[1720591737578,0.55,3104.0,3102.7,1.93378]
[1720591738864,0.55,3104.0,3102.8,1.93372]
[1720591739171,0.8942235,3104.0,3102.9,0.193372]
[1720591739558,0.8942235,3104.0,3102.5,1.99834773]
[1720591739559,0.8942235,3104.0,3102.5,1.9339]
[1720591739783,0.8942235,3104.0,3102.8,1.93373]
[1720591739986,2.4438,3104.1,3103.0,2.3642]
[1720591740197,2.4438,3104.1,3103.2,1.93343]
[1720591740501,2.3591,3104.6,3103.4,1.93334]
[1720591740659,2.3591,3104.6,3103.5,0.386675]
[1720591740854,2.3591,3104.6,3103.4,1.93334]
[1720591741098,2.3591,3104.6,3103.6,1.93322]
[1720591741302,2.3591,3104.6,3103.7,1.99757793]
[1720591741468,1.28079011,3105.0,3103.8,0.06442362]
[1720591741469,3.63989011,3105.0,3103.8,0.06442362]
[1720591741673,0.87407901,3104.9,3103.8,0.06442362]
[1720591741871,2.3591,3105.0,3104.0,1.93297]
[1720591742082,2.3591,3105.0,3103.8,0.06442362]
[1720591742083,2.3591,3105.0,3103.8,1.93306]
[1720591742268,2.3591,3105.0,3103.7,2.4019]
[1720591742269,2.3591,3105.0,3103.9,1.93305]
[1720591742474,2.3591,3105.0,3104.0,1.93298]
[1720591742475,0.23591,3104.9,3104.0,1.93298]
[1720591742793,0.33605905,3105.3,3104.3,1.93275]
[1720591743151,0.33605905,3105.3,3104.3,1.99716481]
[1720591743393,0.33605905,3105.3,3103.9,0.06441481]
[1720591743772,0.33605905,3105.3,3104.0,0.34979268]
[1720591744105,0.33605905,3105.3,3104.0,0.4142129]
[1720591744958,0.33605905,3105.3,3104.0,0.34979268]
[1720591745165,0.33605905,3105.3,3104.1,1.99728754]
[1720591745360,0.33605905,3105.3,3104.2,1.93285]
[1720591745698,0.33605905,3105.3,3104.2,2.36085402]
[1720591746071,0.33605905,3105.3,3104.5,1.93265]
[1720591746592,0.33605905,3105.3,3104.6,0.06441026]
[1720591746906,2.589,3106.3,3104.2,0.42800402]
[1720591746907,2.4765,3106.3,3104.8,2.589]
[1720591747143,2.4765,3106.3,3104.9,0.32973715]
[1720591747310,2.81256307,3106.3,3105.3,1.93217]
[1720591747515,2.81256307,3106.3,3105.4,0.06439378]
[1720591747725,0.28125631,3106.2,3105.4,0.06439378]
[1720591747927,2.81256307,3106.3,3105.5,0.06439337]
[1720591747928,0.33606307,3106.3,3105.5,0.06439337]
[1720591748239,2.3953,3106.8,3105.5,0.06439337]
[1720591748240,2.3953,3106.8,3105.5,1.93203]
[1720591748446,2.73137017,3106.8,3105.5,1.93203]
[1720591748598,0.27313702,3106.7,3105.5,1.93203]
[1720591749044,0.27313702,3106.7,3105.6,0.06439028]
[1720591749907,0.55,3106.6,3105.6,0.06439028]
[1720591750343,0.27313702,3106.7,3105.6,0.06439028]
[1720591750506,0.27313702,3106.7,3105.7,1.93192]
[1720591750847,0.30045072,3106.6,3105.7,1.93192]
[1720591751022,0.30045072,3106.6,3105.6,0.06438692]
[1720591751225,0.30045072,3106.6,3105.6,1.99634692]
[1720591751817,2.73137017,3106.8,3105.7,1.93192]
[1720591752152,2.73137017,3106.8,3105.8,0.0643869]
[1720591752328,2.73137017,3106.8,3105.8,1.9962469]
[1720591752650,2.73137017,3106.8,3105.9,1.93179]
[1720591752821,2.73137017,3106.8,3106.0,0.06438401]
[1720591753146,3.00450719,3106.8,3105.9,1.93179]
[1720591754225,3.00450719,3106.8,3105.3,2.2582]
[1720591754424,3.00450719,3106.8,3105.4,1.9321]
[1720591754839,3.00450719,3106.8,3105.6,1.93198]
[1720591755164,0.30045072,3106.7,3105.7,1.93192]
[1720591755373,0.30045072,3106.7,3105.4,1.99648689]
[1720591755374,0.30045072,3106.7,3105.5,1.93202]
[1720591755529,0.30045072,3106.7,3105.6,1.93198]
[1720591755728,0.30318209,3106.6,3105.6,1.93198]
[1720591755949,2.73137017,3106.8,3105.7,0.06438689]
[1720591756229,2.73137017,3106.8,3105.7,1.99629689]
[1720591756541,3.06417133,3107.3,3106.2,1.93157]
[1720591756542,2.2649,3107.2,3106.2,1.93157]
[1720591756739,2.2649,3107.2,3106.3,0.193157]
[1720591756740,0.33602556,3107.1,3106.3,0.193157]
[1720591756949,0.33602556,3107.1,3106.4,0.06437444]
[1720591757155,0.33602556,3107.1,3106.3,1.93154]
[1720591757340,0.33602556,3107.1,3106.5,1.93138]
[1720591757545,2.2657,3107.6,3106.5,1.99574883]
[1720591757937,2.2657,3107.6,3106.5,1.93138]
[1720591758743,2.2657,3107.6,3106.5,1.99574884]
[1720591759174,0.06417133,3107.5,3106.1,1.93166]
[1720591759384,0.55,3107.4,3106.1,1.93166]
[1720591759615,0.06417133,3107.3,3105.7,9.06512383]
[1720591759764,2.41917133,3107.3,3105.8,1.93182]
[1720591760108,0.91108846,3107.2,3105.8,1.93182]
[1720591760399,2.3447,3107.1,3105.7,7.13321383]
[1720591760606,0.61417133,3107.0,3105.4,2.4791]
[1720591760788,2.3447,3106.9,3104.9,9.72075446]
[1720591761099,0.55,3106.8,3105.4,1.99650087]
[1720591761398,0.58947,3106.7,3105.4,1.99650087]
[1720591761565,0.55,3106.6,3105.4,1.99650087]
[1720591762765,0.58947,3106.7,3105.5,1.93202]
[1720591762966,0.58947,3106.7,3105.6,0.06438775]
[1720591763404,0.58947,3106.7,3105.4,1.93211]
[1720591763607,0.58947,3106.7,3105.5,1.93204]
[1720591763806,0.58947,3106.7,3105.6,0.06438775]
[1720591764769,5.3447,3106.9,3105.6,0.06438775]
[1720591765105,5.3447,3106.9,3105.3,0.06438031]
[1720591765317,5.3447,3106.9,3105.6,1.93198]
[1720591765674,5.3447,3106.9,3105.7,1.93192]
[1720591765906,0.56702789,3106.8,3105.8,0.06438215]
[1720591766134,5.3447,3106.9,3105.9,1.93178]
[1720591766135,2.3447,3106.9,3105.9,1.93178]
[1720591766301,2.3447,3106.9,3106.0,1.99606551]
[1720591766716,2.3447,3106.9,3106.0,1.93169]
[1720591766912,2.3447,3106.9,3105.9,1.93176]
[1720591767140,2.61172788,3106.9,3105.9,0.433548]
[1720591767316,2.3447,3106.9,3106.0,1.99606556]
[1720591768314,2.3036,3107.3,3106.1,1.93166]
[1720591768549,2.3036,3107.3,3106.2,0.06437548]
[1720591768904,2.53396,3107.3,3105.9,0.433548]
[1720591769103,2.53396,3107.3,3106.0,1.93169]
[1720591770809,2.53396,3107.3,3105.9,0.433548]
[1720591771045,0.253396,3107.2,3106.0,0.5365408]
[1720591771218,0.253396,3107.2,3106.0,2.4682708]
[1720591772131,2.3334,3107.1,3106.0,0.5365408]
[1720591772327,2.3334,3107.1,3105.6,11.65020383]
[1720591772328,0.55,3107.0,3105.6,11.65020383]
[1720591772525,2.3334,3107.1,3105.9,1.93178]
[1720591772741,2.3334,3107.1,3105.6,11.65019383]
[1720591772742,2.3334,3106.9,3105.6,7.13321383]
[1720591772917,0.61417133,3106.8,3105.6,7.84653521]
[1720591773548,0.55,3106.8,3105.6,7.84653521]
[1720591774259,2.3334,3106.9,3105.7,0.06438718]
[1720591774443,2.3334,3106.9,3105.8,2.72295224]
[1720591774815,2.3334,3106.9,3105.8,2.78733402]
[1720591775623,2.3334,3106.9,3105.9,1.93175]
[1720591775878,2.3334,3106.9,3106.0,0.06437697]
[1720591776078,2.585,3107.9,3106.4,1.93147]
[1720591776079,2.2618,3107.3,3106.4,1.93147]
[1720591776278,2.2618,3107.3,3106.5,0.06436684]
[1720591776779,2.2618,3107.3,3106.4,1.93147]
[1720591777749,2.2618,3107.3,3106.5,1.93143]
[1720591777947,2.2618,3107.3,3106.6,0.193143]
[1720591779251,2.2618,3107.3,3106.3,1.93151]
[1720591780972,2.2618,3107.3,3106.0,2.50927234]
[1720591781185,2.2618,3107.3,3106.3,1.93152]
[1720591782842,2.2618,3107.3,3106.4,1.99585969]
[1720591783040,2.2618,3107.3,3106.5,0.19958597]
[1720591783249,0.33606545,3107.5,3106.6,1.99573676]
[1720591783477,2.4915,3107.7,3106.8,1.93119]
[1720591783673,2.4915,3107.7,3106.9,0.06435868]
[1720591783999,2.4915,3107.7,3107.0,0.19955487]
[1720591784171,2.4915,3107.7,3107.1,0.0643587]
[1720591785684,0.33607191,3107.9,3107.1,0.0643587]
[1720591785979,0.33607191,3107.9,3107.1,0.06435824]
[1720591786391,0.33607191,3107.9,3107.2,1.93099]
[1720591786696,2.2653,3108.5,3107.3,0.26388499]
[1720591788909,0.33604448,3108.6,3107.3,0.26388499]
[1720591788910,0.33604448,3108.6,3107.4,2.258]
[1720591789060,0.33604448,3108.6,3107.5,0.06434426]
[1720591789269,2.2653,3108.9,3107.7,2.585]
[1720591789575,2.2653,3108.9,3107.8,1.99494786]
[1720591789902,0.3360482,3109.1,3108.1,1.93038]
[1720591790076,0.3360482,3109.1,3108.2,0.06432978]
[1720591790413,0.3360482,3109.1,3108.2,2.38720976]
[1720591790581,2.2619,3109.4,3108.3,0.06432976]
[1720591792976,2.2619,3109.4,3108.3,1.99461976]
[1720591793180,0.33598945,3109.5,3108.6,2.3928]
[1720591793378,2.4187,3109.8,3108.7,0.56210292]
[1720591793704,2.4187,3109.8,3108.8,0.06432292]
[1720591793870,2.4187,3109.8,3108.7,2.42783]
[1720591794264,2.4187,3109.8,3108.8,0.06431738]
[1720591794467,2.4187,3109.8,3108.7,2.42783]
[1720591794714,2.6941684,3109.8,3108.7,2.42783]
[1720591795075,2.75833973,3109.8,3108.6,2.3928]
[1720591795381,2.6941684,3109.8,3108.6,2.3928]
[1720591796298,2.6941684,3109.8,3108.7,0.06432303]
[1720591796470,2.6941684,3109.8,3108.6,4.32292]
[1720591796667,0.30301524,3109.7,3108.7,0.432292]
[1720591796867,0.30301524,3109.7,3108.8,0.06432037]
[1720591797080,2.4187,3109.8,3108.7,0.432292]
[1720591799067,2.4187,3109.8,3108.6,2.3928]
[1720591800307,2.4187,3109.8,3108.7,0.06432311]
[1720591801886,0.335984,3109.9,3108.7,0.06432311]
[1720591802280,0.335984,3109.9,3108.6,4.32287]
[1720591802480,0.335984,3109.9,3108.7,0.690787]
[1720591802725,0.335984,3109.9,3108.7,0.06432313]
[1720591803011,0.335984,3109.9,3108.6,2.3928]
[1720591803319,0.335984,3109.9,3108.2,7.13321383]
[1720591803554,2.585,3109.4,3107.8,2.3338]
[1720591803719,2.42727133,3109.3,3107.9,0.94670138]
[1720591803913,2.9131,3109.3,3107.8,4.26442]
[1720591804109,2.97727133,3109.3,3107.8,4.26442]
[1720591804426,0.62039846,3109.2,3107.9,0.426442]
[1720591805143,0.55622713,3109.2,3107.9,0.426442]
[1720591805342,2.3631,3109.3,3107.9,0.426442]
[1720591806249,2.3631,3109.3,3108.0,1.9305]
[1720591806548,5.585,3109.7,3108.2,1.93036]
[1720591806549,5.4957,3109.7,3108.2,1.93036]
[1720591806844,0.55,3109.6,3108.3,0.06432804]
[1720591807047,1.09957,3109.6,3108.5,2.4235]
[1720591807207,1.09957,3109.6,3108.6,0.06432805]
[1720591807406,1.09957,3109.6,3108.5,2.4235]
[1720591807619,1.09957,3109.6,3108.1,2.4235]
[1720591807824,0.659527,3109.5,3108.1,5.56140058]
[1720591808923,0.33598895,3109.4,3108.1,3.63102058]
[1720591809135,2.4052,3109.2,3107.9,7.55965583]
[1720591809435,0.06417133,3109.1,3107.9,7.13321383]